lending/lending_fUSD_20250719
["ID","MTS","AMOUNT","RATE_DAILY","PERIOD"]
[373252410,1752923461041,-480.0,0.00019287,2]
[373252411,1752923461051,-480.0,0.00019287,2]
[373252412,1752923461061,-480.0,0.00019287,2]
[373252413,1752923461073,-480.0,0.00019287,2]
[373252414,1752923461084,-440.0,0.00019287,2]
[373252415,1752923461094,-480.0,0.00019287,2]
[373252416,1752923461104,-480.0,0.00019287,2]
[373252417,1752923461113,-480.0,0.00019287,2]
[373252418,1752923461123,-519.54,0.00019287,2]
[373252419,1752923461133,-480.0,0.00019287,2]
[373252420,1752923461145,-480.0,0.00019287,2]
[373252421,1752923461155,-484.74,0.00019287,2]
[373252422,1752923461164,-480.0,0.00019287,2]
[373252423,1752923461174,-480.0,0.00019287,2]
[373252424,1752923461185,-629.95,0.00019287,2]
[373252425,1752923461195,-480.0,0.00019287,2]
[373252426,1752923461206,-1203.12818072,0.00019287,2]
[373252427,1752923461217,-24241.65300255,0.00019291,2]
[373252428,1752923461228,-212.96,0.00019304,2]
[373252429,1752923461238,-3762.98405744,0.00019309,2]
[373252430,1752923461248,-160.59186031,0.0001932,2]
[373252431,1752923461258,-500.0,0.00019396,2]
[373252432,1752923461268,-500.0,0.00019396,2]
[373252433,1752923461277,-238.89872336,0.00019396,2]
[373252434,1752923461287,-500.0,0.00019396,2]
[373252435,1752923461297,-495.71131507,0.00019396,2]
[373252436,1752923461308,-164.67916645,0.00019396,2]
[373252437,1752923461320,-500.0,0.00019396,2]
[373252438,1752923461330,-350.043684,0.00019396,2]
[373252439,1752923461341,-500.0,0.00019396,2]
[373252440,1752923461351,-500.0,0.00019396,2]
[373252441,1752923461361,-500.0,0.00019396,2]
[373252442,1752923461372,-500.0,0.00019396,2]
[373252443,1752923461381,-500.0,0.00019396,2]
[373252444,1752923461391,-1609.21,0.00019396,2]
[373252445,1752923461401,-404.99423472,0.00019397,2]
[373252446,1752923461411,-480.0,0.00019397,2]
[373252447,1752923461421,-480.0,0.00019397,2]
[373252448,1752923461431,-480.0,0.00019397,2]
[373252449,1752923461441,-283.0,0.00019397,2]
[373252450,1752923461451,-443.07151931,0.00019397,2]
[373252451,1752923461460,-310.0,0.00019397,2]
[373252452,1752923461470,-480.0,0.00019397,2]
[373252453,1752923461479,-480.0,0.00019397,2]
[373252454,1752923461489,-604.0,0.00019397,2]
[373252455,1752923461499,-613.9,0.00019397,2]
[373252456,1752923461509,-480.0,0.00019397,2]
[373252457,1752923461519,-556.98623545,0.00019397,2]
[373252458,1752923461528,-420.0,0.00019397,2]
[373252459,1752923461538,-480.0,0.00019397,2]
[373252460,1752923461548,-517.32,0.00019397,2]
[373252461,1752923461558,-480.0,0.00019397,2]
[373252462,1752923461568,-480.0,0.00019397,2]
[373252463,1752923461578,-420.0,0.00019397,2]
[373252464,1752923461588,-480.0,0.00019397,2]
[373252465,1752923461598,-480.0,0.00019397,2]
[373252466,1752923461607,-480.0,0.00019397,2]
[373252467,1752923461617,-480.0,0.00019397,2]
[373252468,1752923461627,-480.0,0.00019397,2]
[373252469,1752923461638,-480.0,0.00019397,2]
[373252470,1752923461648,-420.0,0.00019397,2]
[373252471,1752923461658,-480.0,0.00019397,2]
[373252472,1752923461668,-420.0,0.00019397,2]
[373252473,1752923461678,-490.50268313,0.00019397,2]
[373252474,1752923461688,-480.0,0.00019397,2]
[373252475,1752923461698,-591.07242356,0.00019397,2]
[373252476,1752923461708,-480.0,0.00019397,2]
[373252477,1752923461718,-420.0,0.00019397,2]
[373252478,1752923461727,-420.0,0.00019397,2]
[373252479,1752923461737,-420.0,0.00019397,2]
[373252480,1752923461747,-480.0,0.00019397,2]
[373252481,1752923461757,-480.0,0.00019397,2]
[373252482,1752923461767,-480.0,0.00019397,2]
[373252483,1752923461777,-480.0,0.00019397,2]
[373252484,1752923461787,-282.48,0.00019397,2]
[373252485,1752923461797,-480.0,0.00019397,2]
[373252486,1752923461807,-480.0,0.00019397,2]
[373252487,1752923461817,-420.0,0.00019397,2]
[373252488,1752923461828,-428.18589437,0.00019397,2]
[373252489,1752923461838,-480.0,0.00019397,2]
[373252490,1752923461847,-480.0,0.00019397,2]
[373252491,1752923461857,-480.0,0.00019397,2]
[373252492,1752923461867,-480.0,0.00019397,2]
[373252493,1752923461877,-420.0,0.00019397,2]
[373252494,1752923461888,-420.0,0.00019397,2]
[373252495,1752923461898,-480.0,0.00019397,2]
[373252496,1752923461907,-480.0,0.00019397,2]
[373252497,1752923461917,-480.0,0.00019397,2]
[373252498,1752923461927,-420.0,0.00019397,2]
[373252499,1752923461937,-420.0,0.00019397,2]
[373252500,1752923461948,-480.0,0.00019397,2]
[373252501,1752923461959,-480.0,0.00019397,2]
[373252502,1752923461971,-600.84,0.00019397,2]
[373252503,1752923461983,-423.9494245,0.00019397,2]
[373252504,1752923461993,-420.0,0.00019397,2]
[373252505,1752923462004,-480.0,0.00019397,2]
[373252506,1752923462013,-480.0,0.00019397,2]
[373252507,1752923462023,-480.0,0.00019397,2]
[373252508,1752923462033,-420.0,0.00019397,2]
[373252509,1752923462042,-480.0,0.00019397,2]
[373252510,1752923462052,-262.35,0.00019397,2]
[373252511,1752923462062,-430.11837218,0.00019397,2]
[373252512,1752923462074,-480.0,0.00019397,2]
[373252513,1752923462084,-420.0,0.00019397,2]
[373252514,1752923462095,-480.0,0.00019397,2]
[373252515,1752923462105,-480.0,0.00019397,2]
[373252516,1752923462115,-420.0,0.00019397,2]
[373252517,1752923462125,-480.0,0.00019397,2]
[373252518,1752923462140,-562.4282207,0.00019397,2]
[373252519,1752923462150,-420.0,0.00019397,2]
[373252520,1752923462161,-420.0,0.00019397,2]
[373252521,1752923462171,-480.0,0.00019397,2]
[373252522,1752923462181,-480.0,0.00019397,2]
[373252523,1752923462191,-480.0,0.00019397,2]
[373252524,1752923462201,-420.0,0.00019397,2]
[373252525,1752923462216,-420.0,0.00019397,2]
[373252526,1752923462226,-420.0,0.00019397,2]
[373252527,1752923462236,-253.08,0.00019397,2]
[373252528,1752923462247,-480.0,0.00019397,2]
[373252529,1752923462257,-480.0,0.00019397,2]
[373252530,1752923462267,-221.57,0.00019397,2]
[373252531,1752923462277,-480.0,0.00019397,2]
[373252532,1752923462288,-286.66,0.00019397,2]
[373252533,1752923462299,-329.66,0.00019397,2]
[373252534,1752923462310,-480.0,0.00019397,2]
[373252535,1752923462322,-420.0,0.00019397,2]
[373252536,1752923462332,-480.0,0.00019397,2]
[373252537,1752923462342,-420.0,0.00019397,2]
[373252538,1752923462352,-240.07,0.00019397,2]
[373252539,1752923462362,-486.19245028,0.00019397,2]
[373252540,1752923462372,-480.0,0.00019397,2]
[373252541,1752923462382,-191.90034465,0.00019397,2]
[373252542,1752923462392,-480.0,0.00019397,2]
[373252543,1752923462402,-420.0,0.00019397,2]
[373252544,1752923462412,-420.0,0.00019397,2]
[373252545,1752923462422,-265.6,0.00019397,2]
[373252546,1752923462431,-480.0,0.00019397,2]
[373252547,1752923462441,-420.0,0.00019397,2]
[373252548,1752923462451,-420.0,0.00019397,2]
[373252549,1752923462461,-480.0,0.00019397,2]
[373252550,1752923462471,-480.0,0.00019397,2]
[373252551,1752923462481,-480.0,0.00019397,2]
[373252552,1752923462493,-480.0,0.00019397,2]
[373252553,1752923462503,-158.71,0.00019397,2]
[373252554,1752923462513,-420.0,0.00019397,2]
[373252555,1752923462523,-370.74,0.00019397,2]
[373252556,1752923462533,-1815.47,0.00019397,2]
[373252557,1752923462543,-480.0,0.00019397,2]
[373252558,1752923462553,-319.48,0.00019397,2]
[373252559,1752923462563,-480.0,0.00019397,2]
[373252560,1752923462784,-211.88,0.00019397,2]
[373252561,1752923462801,-201.36,0.00019397,2]
[373252562,1752923462811,-480.0,0.00019397,2]
[373252563,1752923462823,-481.42,0.00019397,2]
[373252564,1752923462832,-480.0,0.00019397,2]
[373252565,1752923462842,-480.0,0.00019397,2]
[373252566,1752923462851,-480.0,0.00019397,2]
[373252567,1752923462861,-473.39234786,0.00019397,2]
[373252568,1752923462871,-480.0,0.00019397,2]
[373252569,1752923462880,-480.0,0.00019397,2]
[373252570,1752923462889,-333.55608606,0.00019397,2]
[373252571,1752923462899,-480.0,0.00019397,2]
[373252572,1752923462911,-480.0,0.00019397,2]
[373252573,1752923462920,-399.56,0.00019397,2]
[373252574,1752923462931,-480.0,0.00019397,2]
[373252575,1752923462941,-368.97,0.00019397,2]
[373252576,1752923462951,-480.0,0.00019397,2]
[373252577,1752923462961,-480.0,0.00019397,2]
[373252578,1752923462971,-480.0,0.00019397,2]
[373252579,1752923462981,-480.0,0.00019397,2]
[373252580,1752923462990,-480.0,0.00019397,2]
[373252581,1752923463000,-480.0,0.00019397,2]
[373252582,1752923463009,-480.0,0.00019397,2]
[373252583,1752923463020,-480.0,0.00019397,2]
[373252584,1752923463030,-480.0,0.00019397,2]
[373252585,1752923463039,-480.0,0.00019397,2]
[373252586,1752923463049,-480.0,0.00019397,2]
[373252587,1752923463058,-480.0,0.00019397,2]
[373252588,1752923463068,-420.0,0.00019397,2]
[373252589,1752923463077,-420.0,0.00019397,2]
[373252590,1752923463087,-420.0,0.00019397,2]
[373252591,1752923463096,-480.0,0.00019397,2]
[373252592,1752923463106,-480.0,0.00019397,2]
[373252593,1752923463116,-480.0,0.00019397,2]
[373252594,1752923463126,-480.0,0.00019397,2]
[373252595,1752923463137,-480.0,0.00019397,2]
[373252596,1752923463147,-480.0,0.00019397,2]
[373252597,1752923463157,-480.0,0.00019397,2]
[373252598,1752923463167,-480.0,0.00019397,2]
[373252599,1752923463177,-360.0,0.00019397,2]
[373252600,1752923463187,-480.0,0.00019397,2]
[373252601,1752923463197,-480.0,0.00019397,2]
[373252602,1752923463207,-566.07,0.00019397,2]
[373252603,1752923463218,-480.0,0.00019397,2]
[373252604,1752923463228,-480.0,0.00019397,2]
[373252605,1752923463239,-360.73889108,0.00019397,2]
[373252606,1752923463249,-480.0,0.00019397,2]
[373252607,1752923463259,-546.96579734,0.00019397,2]
[373252608,1752923463269,-480.0,0.00019397,2]
[373252609,1752923463280,-459.7,0.00019397,2]
[373252610,1752923463290,-480.0,0.00019397,2]
[373252611,1752923463300,-480.0,0.00019397,2]
[373252612,1752923463310,-480.0,0.00019397,2]
[373252613,1752923463322,-480.0,0.00019397,2]
[373252614,1752923463333,-480.0,0.00019397,2]
[373252615,1752923463343,-604.95,0.00019397,2]
[373252616,1752923463353,-420.0,0.00019397,2]
[373252617,1752923463363,-480.0,0.00019397,2]
[373252618,1752923463374,-480.0,0.00019397,2]
[373252619,1752923463384,-480.0,0.00019397,2]
[373252620,1752923463394,-480.0,0.00019397,2]
[373252621,1752923463404,-480.0,0.00019397,2]
[373252622,1752923463414,-420.0,0.00019397,2]
[373252623,1752923463424,-480.0,0.00019397,2]
[373252624,1752923463433,-480.0,0.00019397,2]
[373252625,1752923463443,-480.0,0.00019397,2]
[373252626,1752923463453,-480.0,0.00019397,2]
[373252627,1752923463463,-480.0,0.00019397,2]
[373252628,1752923463473,-480.0,0.00019397,2]
[373252629,1752923463483,-480.0,0.00019397,2]
[373252630,1752923463492,-480.0,0.00019397,2]
[373252631,1752923463502,-456.69878357,0.00019397,2]
[373252632,1752923463512,-425.93366067,0.00019397,2]
[373252633,1752923463522,-444.12747455,0.00019397,2]
[373252634,1752923463532,-577.55,0.00019397,2]
[373252635,1752923463542,-480.0,0.00019397,2]
[373252636,1752923463552,-480.0,0.00019397,2]
[373252637,1752923463562,-480.0,0.00019397,2]
[373252638,1752923463573,-480.0,0.00019397,2]
[373252639,1752923463583,-420.0,0.00019397,2]
[373252640,1752923463593,-480.0,0.00019397,2]
[373252641,1752923463602,-480.0,0.00019397,2]
[373252642,1752923463612,-480.0,0.00019397,2]
[373252643,1752923463622,-428.41632834,0.00019397,2]
[373252644,1752923463632,-480.0,0.00019397,2]
[373252645,1752923463642,-442.57015889,0.00019397,2]
[373252646,1752923463652,-261.27940926,0.00019397,2]
[373252647,1752923463662,-480.0,0.00019397,2]
[373252648,1752923463672,-480.0,0.00019397,2]
[373252649,1752923463681,-480.0,0.00019397,2]
[373252650,1752923463691,-480.0,0.00019397,2]
[373252651,1752923463700,-480.0,0.00019397,2]
[373252652,1752923463710,-420.0,0.00019397,2]
[373252653,1752923463720,-480.0,0.00019397,2]
[373252654,1752923463731,-364.07533692,0.00019397,2]
[373252655,1752923463742,-480.0,0.00019397,2]
[373252656,1752923463752,-480.0,0.00019397,2]
[373252657,1752923463762,-428.79353073,0.00019397,2]
[373252658,1752923463772,-480.0,0.00019397,2]
[373252659,1752923463782,-480.0,0.00019397,2]
[373252660,1752923463793,-480.0,0.00019397,2]
[373252661,1752923463803,-480.0,0.00019397,2]
[373252662,1752923463813,-428.94403345,0.00019397,2]
[373252663,1752923463825,-480.0,0.00019397,2]
[373252664,1752923463835,-480.0,0.00019397,2]
[373252665,1752923463845,-480.0,0.00019397,2]
[373252666,1752923463854,-420.0,0.00019397,2]
[373252667,1752923463864,-480.0,0.00019397,2]
[373252668,1752923463874,-224.18234919,0.00019397,2]
[373252669,1752923463885,-420.0,0.00019397,2]
[373252670,1752923463894,-480.0,0.00019397,2]
[373252671,1752923463904,-480.0,0.00019397,2]
[373252672,1752923463913,-517.5,0.00019397,2]
[373252673,1752923463923,-462.12165756,0.00019397,2]
[373252674,1752923463933,-480.0,0.00019397,2]
[373252675,1752923463942,-480.0,0.00019397,2]
[373252676,1752923463951,-480.0,0.00019397,2]
[373252677,1752923463961,-480.0,0.00019397,2]
[373252678,1752923463971,-427.56159031,0.00019397,2]
[373252679,1752923463980,-480.0,0.00019397,2]
[373252680,1752923463990,-431.17077064,0.00019397,2]
[373252681,1752923464000,-430.60272896,0.00019397,2]
[373252682,1752923464010,-457.53,0.00019397,2]
[373252683,1752923464020,-480.0,0.00019397,2]
[373252684,1752923464030,-480.0,0.00019397,2]
[373252685,1752923464039,-420.0,0.00019397,2]
[373252686,1752923464049,-480.0,0.00019397,2]
[373252687,1752923464059,-480.0,0.00019397,2]
[373252688,1752923464070,-480.0,0.00019397,2]
[373252689,1752923464080,-480.0,0.00019397,2]
[373252690,1752923464090,-480.0,0.00019397,2]
[373252691,1752923464100,-480.0,0.00019397,2]
[373252692,1752923464110,-1549.22,0.00019397,2]
[373252693,1752923464119,-429.30613364,0.00019397,2]
[373252694,1752923464131,-480.0,0.00019397,2]
[373252695,1752923464142,-480.0,0.00019397,2]
[373252696,1752923464152,-480.0,0.00019397,2]
[373252697,1752923464162,-480.0,0.00019397,2]
[373252698,1752923464172,-432.28381217,0.00019397,2]
[373252699,1752923464183,-480.0,0.00019397,2]
[373252700,1752923464193,-480.0,0.00019397,2]
[373252701,1752923464203,-434.58510933,0.00019397,2]
[373252702,1752923464214,-561.15308187,0.00019397,2]
[373252703,1752923464223,-960.6,0.00019397,2]
[373252704,1752923464233,-441.91,0.00019397,2]
[373252705,1752923464242,-480.0,0.00019397,2]
[373252706,1752923464252,-420.0,0.00019397,2]
[373252707,1752923464262,-480.0,0.00019397,2]
[373252708,1752923464272,-480.0,0.00019397,2]
[373252709,1752923464282,-480.0,0.00019397,2]
[373252710,1752923464292,-420.0,0.00019397,2]
[373252711,1752923464302,-480.0,0.00019397,2]
[373252712,1752923464313,-480.0,0.00019397,2]
[373252713,1752923464324,-480.0,0.00019397,2]
[373252714,1752923464335,-480.0,0.00019397,2]
[373252715,1752923464345,-480.0,0.00019397,2]
[373252716,1752923464355,-480.0,0.00019397,2]
[373252717,1752923464364,-740.01,0.00019397,2]
[373252718,1752923464374,-480.0,0.00019397,2]
[373252719,1752923464384,-420.0,0.00019397,2]
[373252720,1752923464394,-480.0,0.00019397,2]
[373252721,1752923464403,-420.0,0.00019397,2]
[373252722,1752923464414,-480.0,0.00019397,2]
[373252723,1752923464423,-480.0,0.00019397,2]
[373252724,1752923464432,-611.46,0.00019397,2]
[373252725,1752923464442,-480.0,0.00019397,2]
[373252726,1752923464452,-719.67,0.00019397,2]
[373252727,1752923464463,-480.0,0.00019397,2]
[373252728,1752923464472,-480.0,0.00019397,2]
[373252729,1752923464482,-545.04,0.00019397,2]
[373252730,1752923464492,-640.66,0.00019397,2]
[373252731,1752923464502,-480.0,0.00019397,2]
[373252732,1752923464511,-3120.9,0.00019397,2]
[373252733,1752923464521,-480.0,0.00019397,2]
[373252734,1752923464532,-480.0,0.00019397,2]
[373252735,1752923464541,-480.0,0.00019397,2]
[373252736,1752923464551,-480.0,0.00019397,2]
[373252737,1752923464561,-629.77825387,0.00019397,2]
[373252738,1752923464571,-576.22,0.00019397,2]
[373252739,1752923464580,-480.0,0.00019397,2]
[373252740,1752923464590,-480.0,0.00019397,2]
[373252741,1752923464599,-420.0,0.00019397,2]
[373252742,1752923464609,-480.0,0.00019397,2]
[373252743,1752923464618,-480.0,0.00019397,2]
[373252744,1752923464628,-480.0,0.00019397,2]
[373252745,1752923464638,-480.0,0.00019397,2]
[373252746,1752923464647,-480.0,0.00019397,2]
[373252747,1752923464656,-480.0,0.00019397,2]
[373252748,1752923464666,-480.0,0.00019397,2]
[373252749,1752923464675,-480.0,0.00019397,2]
[373252750,1752923464685,-480.0,0.00019397,2]
[373252751,1752923464695,-480.0,0.00019397,2]
[373252752,1752923464706,-480.0,0.00019397,2]
[373252753,1752923464716,-480.0,0.00019397,2]
[373252754,1752923464726,-480.0,0.00019397,2]
[373252755,1752923464735,-1090.9,0.00019397,2]
[373252756,1752923464745,-505.4,0.00019397,2]
[373252757,1752923464754,-480.0,0.00019397,2]
[373252758,1752923464763,-480.0,0.00019397,2]
[373252759,1752923464773,-480.0,0.00019397,2]
[373252760,1752923464782,-480.0,0.00019397,2]
[373252761,1752923464791,-480.0,0.00019397,2]
[373252762,1752923464801,-2170.19,0.00019397,2]
[373252763,1752923464811,-1446.51,0.00019397,2]
[373252764,1752923464820,-2791.79,0.00019397,2]
[373252765,1752923464830,-480.0,0.00019397,2]
[373252766,1752923464840,-480.0,0.00019397,2]
[373252767,1752923464849,-480.0,0.00019397,2]
[373252768,1752923464859,-699.459769,0.00019397,2]
[373252769,1752923464870,-480.0,0.00019397,2]
[373252770,1752923464879,-3957.3,0.00019397,2]
[373252771,1752923464889,-2107.89,0.00019397,2]
[373252772,1752923464902,-480.0,0.00019397,2]
[373252773,1752923464912,-719.45,0.00019397,2]
[373252774,1752923464922,-420.0,0.00019397,2]
[373252775,1752923464932,-480.0,0.00019397,2]
[373252776,1752923464941,-480.0,0.00019397,2]
[373252777,1752923464951,-480.0,0.00019397,2]
[373252778,1752923464962,-480.0,0.00019397,2]
[373252779,1752923464972,-765.049221,0.00019397,2]
[373252780,1752923464981,-799.26907,0.00019397,2]
[373252781,1752923464990,-480.0,0.00019397,2]
[373252782,1752923465000,-572.96,0.00019397,2]
[373252783,1752923465009,-1000.0,0.00019397,2]
[373252784,1752923465019,-480.0,0.00019397,2]
[373252785,1752923465029,-484.19,0.00019397,2]
[373252786,1752923465039,-480.0,0.00019397,2]
[373252787,1752923465048,-480.0,0.00019397,2]
[373252788,1752923465059,-480.0,0.00019397,2]
[373252789,1752923465069,-489.07,0.00019397,2]
[373252790,1752923465079,-480.0,0.00019397,2]
[373252791,1752923465088,-2393.91,0.00019397,2]
[373252792,1752923465098,-817.32,0.00019397,2]
[373252793,1752923465107,-480.0,0.00019397,2]
[373252794,1752923465117,-420.0,0.00019397,2]
[373252795,1752923465126,-480.0,0.00019397,2]
[373252796,1752923465137,-707.73,0.00019397,2]
[373252797,1752923465148,-480.0,0.00019397,2]
[373252798,1752923465231,-480.0,0.00019397,2]
[373252799,1752923465241,-480.0,0.00019397,2]
[373252800,1752923465252,-1478.18,0.00019397,2]
[373252801,1752923465263,-420.0,0.00019397,2]
[373252802,1752923465272,-480.0,0.00019397,2]
[373252803,1752923465281,-480.0,0.00019397,2]
[373252804,1752923465292,-589.12,0.00019397,2]
[373252805,1752923465301,-480.0,0.00019397,2]
[373252806,1752923465311,-480.0,0.00019397,2]
[373252807,1752923465321,-480.0,0.00019397,2]
[373252808,1752923465330,-480.0,0.00019397,2]
[373252809,1752923465340,-480.0,0.00019397,2]
[373252810,1752923465350,-595.11,0.00019397,2]
[373252811,1752923465359,-782.12,0.00019397,2]
[373252812,1752923465368,-420.0,0.00019397,2]
[373252813,1752923465378,-480.0,0.00019397,2]
[373252814,1752923465387,-453.71206157,0.00019397,2]
[373252815,1752923465396,-480.0,0.00019397,2]
[373252816,1752923465406,-480.0,0.00019397,2]
[373252817,1752923465416,-576.09513866,0.00019397,2]
[373252818,1752923465426,-480.0,0.00019397,2]
[373252819,1752923465435,-853.27,0.00019397,2]
[373252820,1752923465448,-1300.19,0.00019397,2]
[373252821,1752923465458,-480.0,0.00019397,2]
[373252822,1752923465468,-480.0,0.00019397,2]
[373252823,1752923465478,-480.0,0.00019397,2]
[373252824,1752923465488,-480.0,0.00019397,2]
[373252825,1752923465500,-480.0,0.00019397,2]
[373252826,1752923465510,-888.45,0.00019397,2]
[373252827,1752923465520,-747.6,0.00019397,2]
[373252828,1752923465529,-779.19,0.00019397,2]
[373252829,1752923465539,-480.0,0.00019397,2]
[373252830,1752923465548,-501.9,0.00019397,2]
[373252831,1752923465557,-480.0,0.00019397,2]
[373252832,1752923465567,-480.0,0.00019397,2]
[373252833,1752923465577,-480.0,0.00019397,2]
[373252834,1752923465586,-480.0,0.00019397,2]
[373252835,1752923465595,-480.0,0.00019397,2]
[373252836,1752923465605,-516.27,0.00019397,2]
[373252837,1752923465614,-480.0,0.00019397,2]
[373252838,1752923465623,-642.57,0.00019397,2]
[373252839,1752923465633,-480.0,0.00019397,2]
[373252840,1752923465642,-876.37,0.00019397,2]
[373252841,1752923465652,-3056.86,0.00019397,2]
[373252842,1752923465661,-480.0,0.00019397,2]
[373252843,1752923465670,-1752.83,0.00019397,2]
[373252844,1752923465680,-420.0,0.00019397,2]
[373252845,1752923465691,-440.0,0.00019397,2]
[373252846,1752923465700,-480.0,0.00019397,2]
[373252847,1752923465710,-480.0,0.00019397,2]
[373252848,1752923465719,-480.0,0.00019397,2]
[373252849,1752923465728,-420.0,0.00019397,2]
[373252850,1752923465738,-480.0,0.00019397,2]
[373252851,1752923465748,-480.0,0.00019397,2]
[373252852,1752923465758,-480.0,0.00019397,2]
[373252853,1752923465767,-480.0,0.00019397,2]
[373252854,1752923465776,-698.66,0.00019397,2]
[373252855,1752923465785,-480.0,0.00019397,2]
[373252856,1752923465794,-480.0,0.00019397,2]
[373252857,1752923465804,-480.0,0.00019397,2]
[373252858,1752923465814,-480.0,0.00019397,2]
[373252859,1752923465824,-1230.21,0.00019397,2]
[373252860,1752923465833,-1211.46,0.00019397,2]
[373252861,1752923465843,-1731.02,0.00019397,2]
[373252862,1752923465852,-461.66622814,0.00019397,2]
[373252863,1752923465862,-480.0,0.00019397,2]
[373252864,1752923465872,-480.0,0.00019397,2]
[373252865,1752923465881,-480.0,0.00019397,2]
[373252866,1752923465891,-480.0,0.00019397,2]
[373252867,1752923465900,-480.0,0.00019397,2]
[373252868,1752923465910,-981.21,0.00019397,2]
[373252869,1752923465919,-480.0,0.00019397,2]
[373252870,1752923465928,-480.0,0.00019397,2]
[373252871,1752923465937,-4034.3,0.00019397,2]
[373252872,1752923465946,-480.0,0.00019397,2]
[373252873,1752923465956,-480.0,0.00019397,2]
[373252874,1752923465965,-704.38,0.00019397,2]
[373252875,1752923465975,-480.0,0.00019397,2]
[373252876,1752923465985,-480.0,0.00019397,2]
[373252877,1752923465994,-480.0,0.00019397,2]
[373252878,1752923466004,-480.0,0.00019397,2]
[373252879,1752923466013,-926.13,0.00019397,2]
[373252880,1752923466023,-480.0,0.00019397,2]
[373252881,1752923466032,-480.0,0.00019397,2]
[373252882,1752923466041,-480.0,0.00019397,2]
[373252883,1752923466051,-18345.25,0.00019397,2]
[373252884,1752923466061,-480.0,0.00019397,2]
[373252885,1752923466071,-1475.45,0.00019397,2]
[373252886,1752923466080,-1110.95,0.00019397,2]
[373252887,1752923466089,-420.0,0.00019397,2]
[373252888,1752923466099,-1405.33,0.00019397,2]
[373252889,1752923466108,-480.0,0.00019397,2]
[373252890,1752923466117,-480.0,0.00019397,2]
[373252891,1752923466127,-480.0,0.00019397,2]
[373252892,1752923466141,-593.26,0.00019397,2]
[373252893,1752923466151,-2662.0,0.00019397,2]
[373252894,1752923466161,-420.0,0.00019397,2]
[373252895,1752923466170,-489.4,0.00019397,2]
[373252896,1752923466181,-496.53,0.00019397,2]
[373252897,1752923466191,-420.0,0.00019397,2]
[373252898,1752923466200,-1500.91,0.00019397,2]
[373252899,1752923466211,-537.21215287,0.00019397,2]
[373252900,1752923466220,-480.0,0.00019397,2]
[373252901,1752923466230,-594.51,0.00019397,2]
[373252902,1752923466239,-195.36683422,0.00019397,2]
[373252903,1752923466248,-829.66,0.00019397,2]
[373252904,1752923466261,-480.0,0.00019397,2]
[373252905,1752923466275,-480.0,0.00019397,2]
[373252906,1752923466294,-566.69,0.00019397,2]
[373252907,1752923466304,-658.44,0.00019397,2]
[373252908,1752923466314,-420.0,0.00019397,2]
[373252909,1752923466325,-480.0,0.00019397,2]